Workbook

Sheet Order Form
A1: Wildland Equipment Order Form MN FIRE DEPARTMENT USE ONLY
D2: Version 2026.1
A3: Fire Department Name | E3: Date of Order
A4: Shipping Address (No P.O. Boxes)
A5: City, State, Zip Code | E5: Date Needed
A6: Contact Name
A7: Phone # | E7: SHIP THIS ORDER | F7: FALSE | H7: PICKUP AT CACHE | I7: FALSE
A8: Email
A10: Enter the quantity of the item you would like below. | E10: Completed forms must be emailed to: sm.fs.nekfirecache@usda.gov
A11: THIS PROGRAM SHOULD BE USED AS A RESOURCE OF LAST RESORT Equipment may be refurbished and not in new condition. Accountable property such as pumps, chainsaws, and portable generators cannot be sold through this program. The equipment sales are offered as a service. Fire departments are encouraged to purchase wildland fire equipment through normal vendors. Vendors' prices may be similar, and products may better suit the needs of the fire department. ALL SALES ARE FINAL | D11: The Cache is not involved in the billing or invoiceing process. Please do not send payment to the cache!
D12: TOTAL COST WITHOUT SHIPPING | E12: =SUM(F16:F757) -> 
D13: TOTAL ESTIMATED SHIPPING COST | E13: =IF(L14=TRUE,10,J14) -> 10
D14: TOTAL OVERALL COST | E14: =SUM(E12:I13) ->  | J14: =SUM(I16:I757) -> 0 | K14: =SUM(J14*0.8) -> 0 | L14: =IF(K14<10,TRUE,FALSE) -> TRUE
A15: Item # | B15: Qty | C15: Unit of Issue | D15: Description | E15: Unit of Issue Cost | F15: Total | H15: Weight | I15: Total weight
A16: =LEFT(D16, 6) -> 000003 | B16: 0 | C16: Each | D16: 000003 - ADAPTER - 1" NPSH-F,(11 1/2 TPI) TO 1" NH-M(8 TPI) | E16: =_xlfn.XLOOKUP(A16,'Sheet 2'!A:A,'Sheet 2'!B:B) -> 4.95 | F16: =E16*B16 -> 0 | H16: 0.13 | I16: =B16*H16 -> 0
A17: 000004 | B17: 0 | C17: Each | D17: 000004 - ADAPTER - 1" NH-F,(9 TPI) TO 1" NPSH-M (11 1/2 TPI) | E17: =_xlfn.XLOOKUP(A17,'Sheet 2'!A:A,'Sheet 2'!B:B) -> 5.01 | F17: 0 | H17: 0.13 | I17: 0
A18: 000006 | B18: 0 | C18: Each | D18: 000006 - ADAPTER - 1 1/2" NH-F, (9 TPI) TO 1 1/2" NPSH-M (11 1/2 TPI) | E18: =_xlfn.XLOOKUP(A18,'Sheet 2'!A:A,'Sheet 2'!B:B) -> 15.57 | F18: 0 | H18: 0.25 | I18: 0
A19: 000007 | B19: 0 | C19: Each | D19: 000007 - ADAPTER - 1 1/2" NPSH-F, (11 1/2 TPI) TO 1 1/2" NH-M (9TPI) | E19: =_xlfn.XLOOKUP(A19,'Sheet 2'!A:A,'Sheet 2'!B:B) -> 16.12 | F19: 0 | H19: 0.25 | I19: 0
A20: 000009 | B20: 0 | C20: Each | D20: 000009 - REDUCER - 1 1/2" NH-F (9 TPI) TO 1" NH-M (8 TPI) | E20: =_xlfn.XLOOKUP(A20,'Sheet 2'!A:A,'Sheet 2'!B:B) -> 29.92 | F20: 0 | H20: 0.56 | I20: 0
A21: 000010 | B21: 0 | C21: Each | D21: 000010 - REDUCER - 1 1/2" NH-F (9 TPI) TO 1" NPSH-M (11 1/2 TPI) | E21: =_xlfn.XLOOKUP(A21,'Sheet 2'!A:A,'Sheet 2'!B:B) -> 13.58 | F21: 0 | H21: 0.19 | I21: 0
A22: 000011 | B22: 0 | C22: Each | D22: 000011 - PULLER - FENCEPOST | E22: =_xlfn.XLOOKUP(A22,'Sheet 2'!A:A,'Sheet 2'!B:B) -> 112.37 | F22: 0 | H22: 14 | I22: 0
A23: 000014 | B23: 0 | C23: Each | D23: 000014 - BAR - WRECKING, 5/8" DIAMETER, 18" | E23: =_xlfn.XLOOKUP(A23,'Sheet 2'!A:A,'Sheet 2'!B:B) -> 10.41 | F23: 0 | H23: 1.88 | I23: 0
A24: 000021 | B24: 0 | C24: Box | D24: 000021 - BAG - GARBAGE CAN LINER, PLASTIC, 30 GL, 39" X 33" | E24: =_xlfn.XLOOKUP(A24,'Sheet 2'!A:A,'Sheet 2'!B:B) -> 29.89 | F24: 0 | H24: 20.75 | I24: 0
A25: 000022 | B25: 0 | C25: Each | D25: 000022 - BAG - SLEEPING, COLD WEATHER, 34" X 76" | E25: =_xlfn.XLOOKUP(A25,'Sheet 2'!A:A,'Sheet 2'!B:B) -> 62.66 | F25: 0 | H25: 4.75 | I25: 0
A26: 000024 | B26: 0 | C26: Each | D26: 000024 - NOZZLE - TWIN TIP, COMBINATION, 1'' NPSH-F | E26: =_xlfn.XLOOKUP(A26,'Sheet 2'!A:A,'Sheet 2'!B:B) -> 161.35 | F26: 0 | H26: 2.25 | I26: 0
A27: 000028 | B27: 0 | C27: Pair | D27: 000028 - CHAPS - PROTECTIVE, SUMMER WEIGHT, 28" LONG | E27: =_xlfn.XLOOKUP(A27,'Sheet 2'!A:A,'Sheet 2'!B:B) -> 146.67 | F27: 0 | H27: 0 | I27: 0
A28: 000030 | B28: 0 | C28: PG | D28: 000030 - BATTERY - SIZE AA, 1.5 VOLT, PENLIGHT | E28: =_xlfn.XLOOKUP(A28,'Sheet 2'!A:A,'Sheet 2'!B:B) -> 9.26 | F28: 0 | H28: 1.25 | I28: 0
A29: 000033 | B29: 0 | C29: PG | D29: 000033 - BATTERY - SIZE D,1.5V,ALKALINE,GENERAL PURPOSE | E29: =_xlfn.XLOOKUP(A29,'Sheet 2'!A:A,'Sheet 2'!B:B) -> 15.47 | F29: 0 | H29: 3.5 | I29: 0
A30: 000037 | B30: 0 | C30: Each | D30: 000037 - CANTEEN - 1 QT (.9L), PLASTIC, DISPOSABLE, W/O COVER | E30: =_xlfn.XLOOKUP(A30,'Sheet 2'!A:A,'Sheet 2'!B:B) -> 2.03 | F30: 0 | H30: 0.19 | I30: 0
A31: 000045 | B31: 0 | C31: Pair | D31: 000045 - CHAPS - PROTECTIVE, SUMMER WEIGHT, 32" LONG | E31: =_xlfn.XLOOKUP(A31,'Sheet 2'!A:A,'Sheet 2'!B:B) -> 146.67 | F31: 0 | H31: 3.75 | I31: 0
A32: 000046 | B32: 0 | C32: Each | D32: 000046 - CLAMP - HOSE, SHUT-OFF, 1" - 1 1/2" HOSES, 10" LONG WHEN CLOSED | E32: =_xlfn.XLOOKUP(A32,'Sheet 2'!A:A,'Sheet 2'!B:B) -> 53.07 | F32: 0 | H32: 1.44 | I32: 0
A33: 000047 | B33: 0 | C33: Each | D33: 000047 - COMPASS - MAGNETIC, POCKET, AZIMUTH TYPE, 0-360 DEGREES | E33: =_xlfn.XLOOKUP(A33,'Sheet 2'!A:A,'Sheet 2'!B:B) -> 46.56 | F33: 0 | H33: 0.25 | I33: 0
A34: 000048 | B34: 0 | C34: Box | D34: 000048 - CONTAINER - 5 GL (18.9L), PLASTIC, COLLAPSIBLE, W/OVERPACK | E34: =_xlfn.XLOOKUP(A34,'Sheet 2'!A:A,'Sheet 2'!B:B) -> 186.25 | F34: 0 | H34: 52 | I34: 0
A35: 000049 | B35: 0 | C35: Each | D35: 000049 - PLIERS,12" - ADJUSTABLE JOINT,ANGLE NOSE,MULTI TONGUE | E35: =_xlfn.XLOOKUP(A35,'Sheet 2'!A:A,'Sheet 2'!B:B) -> 15.47 | F35: 0 | H35: 1.81 | I35: 0
A36: 000053 | B36: 0 | C36: Each | D36: 000053 - COT - FOLDING, 12 OZ COVER, 31" X 77 1/2" | E36: =_xlfn.XLOOKUP(A36,'Sheet 2'!A:A,'Sheet 2'!B:B) -> 88.26 | F36: 0 | H36: 18.75 | I36: 0
A37: 000059 | B37: 0 | C37: Each | D37: 000059 - BAG - BURLAP, 50" X 28 1/2", W/PLASTIC LINER | E37: =_xlfn.XLOOKUP(A37,'Sheet 2'!A:A,'Sheet 2'!B:B) -> 8.76 | F37: 0 | H37: 1.19 | I37: 0
A38: 000060 | B38: 0 | C38: Each | D38: 000060 - FILE - MILL, 10'', BASTARD | E38: =_xlfn.XLOOKUP(A38,'Sheet 2'!A:A,'Sheet 2'!B:B) -> 3.26 | F38: 0 | H38: 0.38 | I38: 0
A39: 000061 | B39: 0 | C39: Set | D39: 000061 - GUIDE - FILE, 7/32", W/FILE & HANDLE | E39: =_xlfn.XLOOKUP(A39,'Sheet 2'!A:A,'Sheet 2'!B:B) -> 7.61 | F39: 0 | H39: 0.38 | I39: 0
A40: 000063 | B40: 0 | C40: Each | D40: 000063 - HANDLE - FILE, FOR 8" TO 14" FILES | E40: =_xlfn.XLOOKUP(A40,'Sheet 2'!A:A,'Sheet 2'!B:B) -> 2.46 | F40: 0 | H40: 0.13 | I40: 0
A41: 000067 | B41: 0 | C41: Kit | D41: 000067 - KIT - FIRST AID, TYPE 1, POCKET | E41: =_xlfn.XLOOKUP(A41,'Sheet 2'!A:A,'Sheet 2'!B:B) -> 24.31 | F41: 0 | H41: 0.31 | I41: 0
A42: 000070 | B42: 0 | C42: Each | D42: 000070 - FLY - PLASTIC TENT,16'X24' W/10 GUY ROPES | E42: =_xlfn.XLOOKUP(A42,'Sheet 2'!A:A,'Sheet 2'!B:B) -> 663.05 | F42: 0 | H42: 19.75 | I42: 0
A43: 000071 | B43: 0 | C43: Roll | D43: 000071 - TAPE - DUCT, 2" X 60 YD | E43: =_xlfn.XLOOKUP(A43,'Sheet 2'!A:A,'Sheet 2'!B:B) -> 7.68 | F43: =E43*B43 -> 0 | H43: 1.75 | I43: 0
A44: 000077 | B44: 0 | C44: Each | D44: 000077 - TENT - 2 PERSON | E44: =_xlfn.XLOOKUP(A44,'Sheet 2'!A:A,'Sheet 2'!B:B) -> 255.31 | F44: 0 | H44: 10.94 | I44: 0
A45: 000078 | B45: 0 | C45: Pair | D45: 000078 - CHAPS - PROTECTIVE, SUMMER WEIGHT, 36" LONG | E45: =_xlfn.XLOOKUP(A45,'Sheet 2'!A:A,'Sheet 2'!B:B) -> 146.67 | F45: 0 | H45: 4.25 | I45: 0
A46: 000082 | B46: 0 | C46: Each | D46: 000082 - POLE, RIDGE - FOR 10' X 12' TENT | E46: =_xlfn.XLOOKUP(A46,'Sheet 2'!A:A,'Sheet 2'!B:B) -> 85.38 | F46: 0 | H46: 16.2 | I46: 0
A47: 000083 | B47: 0 | C47: Each | D47: 000083 - POLE - UPRIGHT, ADJUSTABLE | E47: =_xlfn.XLOOKUP(A47,'Sheet 2'!A:A,'Sheet 2'!B:B) -> 60.91 | F47: 0 | H47: 7.38 | I47: 0
A48: 000084 | B48: 0 | C48: Each | D48: 000084 - TENT - WALL, 14' X 16', WITHOUT POLES | E48: =_xlfn.XLOOKUP(A48,'Sheet 2'!A:A,'Sheet 2'!B:B) -> 689.68 | F48: 0 | H48: 96 | I48: 0
A49: 000086 | B49: 0 | C49: Pad | D49: 000086 - FORM - I/A HELICOPTER PASS/CARGO MANIFEST, OF-252 | E49: =_xlfn.XLOOKUP(A49,'Sheet 2'!A:A,'Sheet 2'!B:B) -> 8.65 | F49: 0 | H49: 0.25 | I49: 0
A50: 000089 | B50: 0 | C50: Each | D50: 000089 - POLE - RIDGE,16' | E50: =_xlfn.XLOOKUP(A50,'Sheet 2'!A:A,'Sheet 2'!B:B) -> 184.17 | F50: 0 | H50: 22.75 | I50: 0
A51: 000090 | B51: 0 | C51: Each | D51: 000090 - TANK - COLLAPSIBLE - 1200 GL (4542L), FREE STANDING 44'' DEPTH, OPENING 61'' | E51: =_xlfn.XLOOKUP(A51,'Sheet 2'!A:A,'Sheet 2'!B:B) -> 895.77 | F51: 0 | H51: 68 | I51: 0
A52: 000105 | B52: 0 | C52: Box | D52: 000105 - FUSEE - SIGNAL DEVICE, HAND | E52: =_xlfn.XLOOKUP(A52,'Sheet 2'!A:A,'Sheet 2'!B:B) -> 143.17 | F52: 0 | H52: 37.5 | I52: 0
A53: 000113 | B53: 0 | C53: Each | D53: 000113 - FUEL LINE ASSEMBLY - 1/4" X 5' W/FITTINGS | E53: =_xlfn.XLOOKUP(A53,'Sheet 2'!A:A,'Sheet 2'!B:B) -> 57.72 | F53: 0 | H53: 1 | I53: 0
A54: 000114 | B54: 0 | C54: Length | D54: 000114 - HOSE - COTTON SYNTHETIC JACKET,1 1/2" NH X 3', RUBBER LINED | E54: =_xlfn.XLOOKUP(A54,'Sheet 2'!A:A,'Sheet 2'!B:B) -> 38.91 | F54: 0 | H54: 2.38 | I54: 0
A55: 000115 | B55: 0 | C55: Length | D55: 000115 - HOSE - SUCTION, 1 1/2" NH X 10', RUBBER, RCKR LUG COUPL,9 NSHT/IN | E55: =_xlfn.XLOOKUP(A55,'Sheet 2'!A:A,'Sheet 2'!B:B) -> 214.15 | F55: 0 | H55: 8.88 | I55: 0
A56: 000126 | B56: 0 | C56: Kit | D56: 000126 - KIT - WASH, ASSEMBLY | E56: =_xlfn.XLOOKUP(A56,'Sheet 2'!A:A,'Sheet 2'!B:B) -> 12.96 | F56: 0 | H56: 1.06 | I56: 0
A57: 000128 | B57: 0 | C57: Each | D57: 000128 - BAG - SLEEPING, COLD WEATHER, 35" X 81" (2012) | E57: =_xlfn.XLOOKUP(A57,'Sheet 2'!A:A,'Sheet 2'!B:B) -> 116.97 | F57: 0 | H57: 4.5 | I57: 0
A58: 000131 | B58: 0 | C58: Each | D58: 000131 - RESPIRATOR - N95 PARTICULATE, NIOSH APPROVED | E58: =_xlfn.XLOOKUP(A58,'Sheet 2'!A:A,'Sheet 2'!B:B) -> 0.98 | F58: 0 | H58: 0.06 | I58: 0
A59: 000135 | B59: 0 | C59: Kit | D59: 000135 - MESS GEAR - DISPOSABLE 25-PERSON, 1 DAY | E59: =_xlfn.XLOOKUP(A59,'Sheet 2'!A:A,'Sheet 2'!B:B) -> 70.11 | F59: 0 | H59: 8.38 | I59: 0
A60: 000136 | B60: 0 | C60: Each | D60: 000136 - NOZZLE - GARDEN HOSE, 3/4" NH, ADJUSTABLE, BRASS | E60: =_xlfn.XLOOKUP(A60,'Sheet 2'!A:A,'Sheet 2'!B:B) -> 22.06 | F60: 0 | H60: 0.44 | I60: 0
A61: 000137 | B61: 0 | C61: Each | D61: 000137 - NOZZLE - PLASTIC, 60 GPM, 1 1/2'' NH-F X 4 3/4'' LONG | E61: =_xlfn.XLOOKUP(A61,'Sheet 2'!A:A,'Sheet 2'!B:B) -> 8.33 | F61: 0 | H61: 0.63 | I61: 0
A62: 000138 | B62: 0 | C62: Each | D62: 000138 - NOZZLE - PLASTIC, 35 GPM, 1'' NPSH-F | E62: =_xlfn.XLOOKUP(A62,'Sheet 2'!A:A,'Sheet 2'!B:B) -> 8.64 | F62: 0 | H62: 0.5 | I62: 0
A63: 000141 | B63: 0 | C63: Each | D63: 000141 - PAIL - COLLAPSIBLE, W/CARRYING HANDLE | E63: =_xlfn.XLOOKUP(A63,'Sheet 2'!A:A,'Sheet 2'!B:B) -> 10.46 | F63: 0 | H63: 0.5 | I63: 0
A64: 000142 | B64: 0 | C64: Box | D64: 000142 - PAPER - TOILET | E64: =_xlfn.XLOOKUP(A64,'Sheet 2'!A:A,'Sheet 2'!B:B) -> 68.46 | F64: 0 | H64: 44 | I64: 0
A65: 000143 | B65: 0 | C65: Roll | D65: 000143 - SHEETING - PLASTIC, CLEAR, 16' X 100' | E65: =_xlfn.XLOOKUP(A65,'Sheet 2'!A:A,'Sheet 2'!B:B) -> 67.8 | F65: 0 | H65: 21.88 | I65: 0
A66: 000144 | B66: 0 | C66: Roll | D66: 000144 - SHEETING - PLASTIC, BLACK, 20' X 100' | E66: =_xlfn.XLOOKUP(A66,'Sheet 2'!A:A,'Sheet 2'!B:B) -> 84.53 | F66: 0 | H66: 44 | I66: 0
A67: 000145 | B67: 0 | C67: Each | D67: 000145 - PRIMER - HAND, MARK 3 | E67: =_xlfn.XLOOKUP(A67,'Sheet 2'!A:A,'Sheet 2'!B:B) -> 116.49 | F67: 0 | H67: 2.25 | I67: 0
A68: 000146 | B68: 0 | C68: Each | D68: 000146 - PULASKI - WITH PLASTIC SHEATH | E68: =_xlfn.XLOOKUP(A68,'Sheet 2'!A:A,'Sheet 2'!B:B) -> 72.68 | F68: 0 | H68: 5.88 | I68: 0
A69: 000149 | B69: 0 | C69: Each | D69: 000149 - PUMP - BARREL, HAND, W/UNLEADED NOZZLE, FOR 55 GL DRUM | E69: =_xlfn.XLOOKUP(A69,'Sheet 2'!A:A,'Sheet 2'!B:B) -> 278.56 | F69: 0 | H69: 15.75 | I69: 0
A70: 000150 | B70: 0 | C70: Pair | D70: 000150 - CHAPS - PROTECTIVE, SUMMER WEIGHT, 40" LONG | E70: =_xlfn.XLOOKUP(A70,'Sheet 2'!A:A,'Sheet 2'!B:B) -> 146.67 | F70: 0 | H70: 2.44 | I70: 0
A71: 000151 | B71: 0 | C71: Each | D71: 000151 - PUMP - TROMBONE, BACKPACK, SINGLE ACTION | E71: =_xlfn.XLOOKUP(A71,'Sheet 2'!A:A,'Sheet 2'!B:B) -> 70.67 | F71: 0 | H71: 2.63 | I71: 0
A72: 000171 | B72: 0 | C72: Each | D72: 000171 - SHOVEL - WITH PLASTIC SHEATH, SIZE #1 | E72: =_xlfn.XLOOKUP(A72,'Sheet 2'!A:A,'Sheet 2'!B:B) -> 91.53 | F72: 0 | H72: 4.88 | I72: 0
A73: 000177 | B73: 0 | C73: Each | D73: 000177 - SIGN - DANGER NO SMOKING, POLYVINYL, 14" X 11" | E73: =_xlfn.XLOOKUP(A73,'Sheet 2'!A:A,'Sheet 2'!B:B) -> 6.39 | F73: 0 | H73: 0.1 | I73: 0
A74: 000178 | B74: 0 | C74: Each | D74: 000178 - SIGN - DIRECTION ARROW, WHITE TAG, 14" X 11" | E74: =_xlfn.XLOOKUP(A74,'Sheet 2'!A:A,'Sheet 2'!B:B) -> 1.47 | F74: 0 | H74: 0.06 | I74: 0
A75: 000184 | B75: 0 | C75: Each | D75: 000184 - SIGN - ADA PARKING, POLYVINYL, 12" x 16" | E75: =_xlfn.XLOOKUP(A75,'Sheet 2'!A:A,'Sheet 2'!B:B) -> 12.03 | F75: 0 | H75: 0.1 | I75: 0
A76: 000185 | B76: 0 | C76: Each | D76: 000185 - SIGN - PARKING, POLYVINYL, 14" X 10" | E76: =_xlfn.XLOOKUP(A76,'Sheet 2'!A:A,'Sheet 2'!B:B) -> 6.5 | F76: 0 | H76: 0.06 | I76: 0
A77: 000186 | B77: 0 | C77: Each | D77: 000186 - SIGN - NO PARKING, POLYVINYL, 14'' X 10'' | E77: =_xlfn.XLOOKUP(A77,'Sheet 2'!A:A,'Sheet 2'!B:B) -> 12.89 | F77: 0 | H77: 0.1 | I77: 0
A78: 000189 | B78: 0 | C78: Each | D78: 000189 - SIGN - BLANK, WHITE TAG, 14" X 11" | E78: =_xlfn.XLOOKUP(A78,'Sheet 2'!A:A,'Sheet 2'!B:B) -> 0.69 | F78: 0 | H78: 0.1 | I78: 0
A79: 000196 | B79: 0 | C79: Each | D79: 000196 - SIGN - DANGER KEEP OUT, POLYVINYL, 14'' X 10'' | E79: =_xlfn.XLOOKUP(A79,'Sheet 2'!A:A,'Sheet 2'!B:B) -> 11.91 | F79: 0 | H79: 0.1 | I79: 0
A80: =LEFT(D80, 6) -> 000197 | B80: 0 | C80: Each | D80: 000197 - SIGN - RESTROOM WOMEN, WHITE TAG, 12" X 12" | E80: =_xlfn.XLOOKUP(A80,'Sheet 2'!A:A,'Sheet 2'!B:B) -> 4.32 | F80: 0 | H80: 0.1 | I80: =B80*H80 -> 0
A81: 000206 | B81: 0 | C81: Each | D81: 000206 - WASHCLOTH - WATERLESS, CLEANSING, 10" X 11 1/2" | E81: =_xlfn.XLOOKUP(A81,'Sheet 2'!A:A,'Sheet 2'!B:B) -> 0.21 | F81: 0 | H81: 0.06 | I81: 0
A82: 000212 | B82: 0 | C82: Each | D82: 000212 - VALVE - FOOT, 1 1/2" NH-F W/STRAINER | E82: =_xlfn.XLOOKUP(A82,'Sheet 2'!A:A,'Sheet 2'!B:B) -> 87.78 | F82: 0 | H82: 1.88 | I82: 0
A83: 000213 | B83: 0 | C83: Each | D83: 000213 - STRAP - CHIN, SAFETY HELMET, BULLARD ES-42 | E83: =_xlfn.XLOOKUP(A83,'Sheet 2'!A:A,'Sheet 2'!B:B) -> 4.65 | F83: 0 | H83: 0.06 | I83: 0
A84: 000216 | B84: 0 | C84: Each | D84: 000216 - TAG - SHIPPING (BLANK) | E84: =_xlfn.XLOOKUP(A84,'Sheet 2'!A:A,'Sheet 2'!B:B) -> 0.24 | F84: 0 | H84: 0.06 | I84: 0
A85: 000218 | B85: 0 | C85: Each | D85: 000218 - TANK, GASOLINE - 5 GL (18.9L), PUMP ADAPTED | E85: =_xlfn.XLOOKUP(A85,'Sheet 2'!A:A,'Sheet 2'!B:B) -> 181.15 | F85: 0 | H85: 10.88 | I85: 0
A86: 000222 | B86: 0 | C86: Roll | D86: 000222 - TAPE - FILAMENT, 1" X 60 YD | E86: =_xlfn.XLOOKUP(A86,'Sheet 2'!A:A,'Sheet 2'!B:B) -> 5.4 | F86: 0 | H86: 0.63 | I86: 0
A87: 000223 | B87: 0 | C87: Each | D87: 000223 - TENT - WALL, 10' X 12', WITHOUT POLES | E87: =_xlfn.XLOOKUP(A87,'Sheet 2'!A:A,'Sheet 2'!B:B) -> 434.1 | F87: 0 | H87: 56.2 | I87: 0
A88: 000224 | B88: 0 | C88: Each | D88: 000224 - INSTRUCTIONS - LIGHTWEIGHT PUMP | E88: =_xlfn.XLOOKUP(A88,'Sheet 2'!A:A,'Sheet 2'!B:B) -> 0 | F88: 0 | H88: 0.2 | I88: 0
A89: 000228 | B89: 0 | C89: Each | D89: 000228 - VALVE - AUTOMATIC CHECK AND BLEEDER 1 1/2" NH-F | E89: =_xlfn.XLOOKUP(A89,'Sheet 2'!A:A,'Sheet 2'!B:B) -> 132.81 | F89: 0 | H89: 2.56 | I89: 0
A90: 000229 | B90: 0 | C90: Each | D90: 000229 - VALVE - PRESSURE RELIEF, 1 1/2" NH-F | E90: =_xlfn.XLOOKUP(A90,'Sheet 2'!A:A,'Sheet 2'!B:B) -> 104.38 | F90: 0 | H90: 1.38 | I90: 0
A91: 000230 | B91: 0 | C91: Each | D91: 000230 - TEE - HOSELINE, W/VALVE, 1 1/2" NH-F X 1 1/2" NH-M X 1" NPSH-M | E91: =_xlfn.XLOOKUP(A91,'Sheet 2'!A:A,'Sheet 2'!B:B) -> 47.09 | F91: 0 | H91: 0.94 | I91: 0
A92: 000231 | B92: 0 | C92: Each | D92: 000231 - VALVE - WYE, GATED, 1 1/2'' NH-F X 1 1/2'' NH-M X 1 1/2'' NH-M | E92: =_xlfn.XLOOKUP(A92,'Sheet 2'!A:A,'Sheet 2'!B:B) -> 125.63 | F92: 0 | H92: 3.75 | I92: 0
A93: 000234 | B93: 0 | C93: Each | D93: 000234 - WRENCH - SPANNER, 5", 1" TO 1 1/2" HOSE SIZE | E93: =_xlfn.XLOOKUP(A93,'Sheet 2'!A:A,'Sheet 2'!B:B) -> 6.46 | F93: 0 | H93: 0.38 | I93: 0
A94: 000235 | B94: 0 | C94: Each | D94: 000235 - WRENCH - SPANNER, 11", 1 1/2" TO 2 1/2" HOSE SIZE | E94: =_xlfn.XLOOKUP(A94,'Sheet 2'!A:A,'Sheet 2'!B:B) -> 11.08 | F94: 0 | H94: 0.63 | I94: 0
A95: 000240 | B95: 0 | C95: Box | D95: 000240 - TOWEL - PAPER, TWO PLY, ROLL | E95: =_xlfn.XLOOKUP(A95,'Sheet 2'!A:A,'Sheet 2'!B:B) -> 31.1 | F95: 0 | H95: 41 | I95: 0
A96: 000241 | B96: 0 | C96: Each | D96: 000241 - TORCH - DRIP, 1 1/4 GL (4.7L) CAPACITY | E96: =_xlfn.XLOOKUP(A96,'Sheet 2'!A:A,'Sheet 2'!B:B) -> 214.72 | F96: 0 | H96: 5.13 | I96: 0
A97: 000247 | B97: 0 | C97: Each | D97: 000247 - HANDLE - SLIDING T, 1/2" DRIVE | E97: =_xlfn.XLOOKUP(A97,'Sheet 2'!A:A,'Sheet 2'!B:B) -> 27.91 | F97: 0 | H97: 0.94 | I97: 0
A98: 000248 | B98: 0 | C98: Each | D98: 000248 - PLIERS - SLIP JOINT 8" LONG | E98: =_xlfn.XLOOKUP(A98,'Sheet 2'!A:A,'Sheet 2'!B:B) -> 11.34 | F98: 0 | H98: 0.63 | I98: 0
A99: 000250 | B99: 0 | C99: Pad | D99: 000250 - PAPER - EASEL, 27" X 34" | E99: =_xlfn.XLOOKUP(A99,'Sheet 2'!A:A,'Sheet 2'!B:B) -> 22.29 | F99: 0 | H99: 6.38 | I99: 0
A100: 000251 | B100: 0 | C100: Each | D100: 000251 - CLOTH - OIL SORBENT, 36" X 36" X 3/8" | E100: =_xlfn.XLOOKUP(A100,'Sheet 2'!A:A,'Sheet 2'!B:B) -> 2.88 | F100: 0 | H100: 0.69 | I100: 0
A101: 000254 | B101: 0 | C101: Each | D101: 000254 - GASKET - HOSE, 1 1/2" | E101: =_xlfn.XLOOKUP(A101,'Sheet 2'!A:A,'Sheet 2'!B:B) -> 0.34 | F101: 0 | H101: 0.06 | I101: 0
A102: 000256 | B102: 0 | C102: Each | D102: 000256 - SCREWDRIVER - FLAT TIP, 2" | E102: =_xlfn.XLOOKUP(A102,'Sheet 2'!A:A,'Sheet 2'!B:B) -> 2.23 | F102: 0 | H102: 0.06 | I102: 0
A103: 000258 | B103: 0 | C103: Each | D103: 000258 - PULASKI - W/42" FIBERGLASS HANDLE | E103: =_xlfn.XLOOKUP(A103,'Sheet 2'!A:A,'Sheet 2'!B:B) -> 73.83 | F103: 0 | H103: 6.8 | I103: 0
A104: 000259 | B104: 0 | C104: Each | D104: 000259 - VALVE - WYE, GATED, 1" NPSH-F X 1" NPSH-M X 1" NPSH-M | E104: =_xlfn.XLOOKUP(A104,'Sheet 2'!A:A,'Sheet 2'!B:B) -> 124.55 | F104: 0 | H104: 2.44 | I104: 0
A105: 000260 | B105: 0 | C105: Kit | D105: 000260 - KIT - PUMP TOOL ROLL, FIRE, PORTABLE | E105: =_xlfn.XLOOKUP(A105,'Sheet 2'!A:A,'Sheet 2'!B:B) -> 141.44 | F105: 0 | H105: 4 | I105: 0
A106: 000262 | B106: 0 | C106: Each | D106: 000262 - WRENCH - BOX, OPEN END, 10MM OFFSET, MARK 3, PACIFIC R-906 | E106: =_xlfn.XLOOKUP(A106,'Sheet 2'!A:A,'Sheet 2'!B:B) -> 13.93 | F106: 0 | H106: 0.19 | I106: 0
A107: 000263 | B107: 0 | C107: Each | D107: 000263 - SCREWDRIVER - FLAT TIP, DOUBLE BEND, 3" | E107: =_xlfn.XLOOKUP(A107,'Sheet 2'!A:A,'Sheet 2'!B:B) -> 5.86 | F107: =E107*B107 -> 0 | H107: 0.06 | I107: 0
A108: 000264 | B108: 0 | C108: Roll | D108: 000264 - RIBBON - FLAGGING, WHITE, 1" WIDE | E108: =_xlfn.XLOOKUP(A108,'Sheet 2'!A:A,'Sheet 2'!B:B) -> 0.84 | F108: 0 | H108: 0.5 | I108: 0
A109: 000267 | B109: 0 | C109: Roll | D109: 000267 - RIBBON - FLAGGING,HAZARDS,1'' WIDE | E109: =_xlfn.XLOOKUP(A109,'Sheet 2'!A:A,'Sheet 2'!B:B) -> 3.74 | F109: 0 | H109: 0.44 | I109: 0
A110: 000268 | B110: 0 | C110: Each | D110: 000268 - PUNCH - PAPER,3 HOLE | E110: =_xlfn.XLOOKUP(A110,'Sheet 2'!A:A,'Sheet 2'!B:B) -> 51.75 | F110: 0 | H110: 3.19 | I110: 0
A111: 000278 | B111: 0 | C111: Roll | D111: 000278 - RIBBON - FLAGGING, YELLOW, 1" WIDE | E111: =_xlfn.XLOOKUP(A111,'Sheet 2'!A:A,'Sheet 2'!B:B) -> 2.59 | F111: 0 | H111: 0.38 | I111: 0
A112: 000279 | B112: 0 | C112: Roll | D112: 000279 - RIBBON - FLAGGING, RED, 1" WIDE | E112: =_xlfn.XLOOKUP(A112,'Sheet 2'!A:A,'Sheet 2'!B:B) -> 2.46 | F112: 0 | H112: 0.38 | I112: 0
A113: 000281 | B113: 0 | C113: Each | D113: 000281 - BAG - TENT, PERSONAL GEAR PACK | E113: =_xlfn.XLOOKUP(A113,'Sheet 2'!A:A,'Sheet 2'!B:B) -> 33.33 | F113: 0 | H113: 1.25 | I113: 0
A114: 000288 | B114: 0 | C114: Each | D114: 000288 - CLOCK - DIGITAL, BATTERY OPERATED,W/ALARM,12/24 HOUR | E114: =_xlfn.XLOOKUP(A114,'Sheet 2'!A:A,'Sheet 2'!B:B) -> 15.55 | F114: 0 | H114: 0.44 | I114: 0
A115: 000290 | B115: 0 | C115: Each | D115: 000290 - SCREWDRIVER - FLAT TIP, 6" | E115: =_xlfn.XLOOKUP(A115,'Sheet 2'!A:A,'Sheet 2'!B:B) -> 8.18 | F115: 0 | H115: 0.31 | I115: 0
A116: 000291 | B116: 0 | C116: Each | D116: 000291 - PLIERS - SLIP JOINT 6" LONG | E116: =_xlfn.XLOOKUP(A116,'Sheet 2'!A:A,'Sheet 2'!B:B) -> 9.47 | F116: 0 | H116: 0.31 | I116: 0
A117: 000294 | B117: 0 | C117: Each | D117: 000294 - HARNESS - CHEST, FIRE SHELTER | E117: =_xlfn.XLOOKUP(A117,'Sheet 2'!A:A,'Sheet 2'!B:B) -> 19.26 | F117: 0 | H117: 0.44 | I117: 0
A118: 000296 | B118: 0 | C118: Each | D118: 000296 - MC LEOD - WITH PLASTIC SHEATH, 11" WIDE | E118: =_xlfn.XLOOKUP(A118,'Sheet 2'!A:A,'Sheet 2'!B:B) -> 68.49 | F118: 0 | H118: 6.19 | I118: 0
A119: 000305 | B119: 0 | C119: Each | D119: 000305 - CARTON - FIBERBOARD, 56" X 20" X 11" | E119: =_xlfn.XLOOKUP(A119,'Sheet 2'!A:A,'Sheet 2'!B:B) -> 52.58 | F119: 0 | H119: 13.13 | I119: 0
A120: 000307 | B120: 0 | C120: Each | D120: 000307 - EXTINGUISHER - FIRE,20A:120BC, 20 LBS | E120: =_xlfn.XLOOKUP(A120,'Sheet 2'!A:A,'Sheet 2'!B:B) -> 154.68 | F120: 0 | H120: 40 | I120: 0
A121: 000308 | B121: 0 | C121: Each | D121: 000308 - WINDSOCK - SMALL, 9" X 30", W/BRACKET AND POLE | E121: =_xlfn.XLOOKUP(A121,'Sheet 2'!A:A,'Sheet 2'!B:B) -> 85.7 | F121: 0 | H121: 1.63 | I121: 0
A122: 000315 | B122: 0 | C122: Roll | D122: 000315 - WRAP - STRETCH, 2" - 5", DISPOSABLE | E122: =_xlfn.XLOOKUP(A122,'Sheet 2'!A:A,'Sheet 2'!B:B) -> 5.8 | F122: 0 | H122: 1.38 | I122: 0
A123: 000316 | B123: 0 | C123: Roll | D123: 000316 - WRAP - STRETCH, 15" - 18", DISPOSABLE | E123: =_xlfn.XLOOKUP(A123,'Sheet 2'!A:A,'Sheet 2'!B:B) -> 17.33 | F123: 0 | H123: 5.31 | I123: 0
A124: 000317 | B124: 0 | C124: Each | D124: 000317 - FRAME - ALICE PACK W/STRAPS | E124: =_xlfn.XLOOKUP(A124,'Sheet 2'!A:A,'Sheet 2'!B:B) -> 34.96 | F124: 0 | H124: 3.88 | I124: 0
A125: 000318 | B125: 0 | C125: Pair | D125: 000318 - GOGGLES - CLEAR LENS,UVEX STEALTH MODEL ANSI Z87.1 | E125: =_xlfn.XLOOKUP(A125,'Sheet 2'!A:A,'Sheet 2'!B:B) -> 22.93 | F125: 0 | H125: 0.25 | I125: 0
A126: 000320 | B126: 0 | C126: Kit | D126: 000320 - KIT - INCIDENT BASE MAINTENANCE | E126: =_xlfn.XLOOKUP(A126,'Sheet 2'!A:A,'Sheet 2'!B:B) -> 685.55 | F126: 0 | H126: 75 | I126: 0
A127: 000321 | B127: 0 | C127: Each | D127: 000321 - HAMMER - CLAW, 16 OZ | E127: =_xlfn.XLOOKUP(A127,'Sheet 2'!A:A,'Sheet 2'!B:B) -> 12.75 | F127: 0 | H127: 1 | I127: 0
A128: 000322 | B128: 0 | C128: Each | D128: 000322 - HAMMER - BLACKSMITH, 3-5 LBS (1.35KG - 2.25KG) | E128: =_xlfn.XLOOKUP(A128,'Sheet 2'!A:A,'Sheet 2'!B:B) -> 20.82 | F128: 0 | H128: 3.38 | I128: 0
A129: 000324 | B129: 0 | C129: Each | D129: 000324 - WRENCH - ADJUSTABLE, 12" | E129: =_xlfn.XLOOKUP(A129,'Sheet 2'!A:A,'Sheet 2'!B:B) -> 13.34 | F129: 0 | H129: 1.44 | I129: 0
A130: 000325 | B130: 0 | C130: Each | D130: 000325 - PLIERS - LINEMAN, 6" | E130: =_xlfn.XLOOKUP(A130,'Sheet 2'!A:A,'Sheet 2'!B:B) -> 19.84 | F130: 0 | H130: 0.44 | I130: 0
A131: 000328 | B131: 0 | C131: Each | D131: 000328 - CAP - CANTEEN, 1 QT., PUSH/PULL | E131: =_xlfn.XLOOKUP(A131,'Sheet 2'!A:A,'Sheet 2'!B:B) -> 0.13 | F131: 0 | H131: 0.06 | I131: 0
A132: 000329 | B132: 0 | C132: PG | D132: 000329 - NAILS - 10 D, 3" | E132: =_xlfn.XLOOKUP(A132,'Sheet 2'!A:A,'Sheet 2'!B:B) -> 8.7 | F132: 0 | H132: 5.38 | I132: 0
A133: 000332 | B133: 0 | C133: Each | D133: 000332 - WRENCH - ADJUSTABLE, 6" | E133: =_xlfn.XLOOKUP(A133,'Sheet 2'!A:A,'Sheet 2'!B:B) -> 13.6 | F133: 0 | H133: 0.38 | I133: 0
A134: 000333 | B134: 0 | C134: Each | D134: 000333 - WRENCH - BUNG | E134: =_xlfn.XLOOKUP(A134,'Sheet 2'!A:A,'Sheet 2'!B:B) -> 35.96 | F134: 0 | H134: 2.25 | I134: 0
A135: 000336 | B135: 0 | C135: Each | D135: 000336 - WRENCH - TORX | E135: =_xlfn.XLOOKUP(A135,'Sheet 2'!A:A,'Sheet 2'!B:B) -> 1.94 | F135: 0 | H135: 0.06 | I135: 0
A136: 000342 | B136: 0 | C136: Kit | D136: 000342 - KIT - CHAIN SAW TOOL ROLL | E136: =_xlfn.XLOOKUP(A136,'Sheet 2'!A:A,'Sheet 2'!B:B) -> 59.03 | F136: 0 | H136: 1 | I136: 0
A137: 000344 | B137: 0 | C137: Each | D137: 000344 - PLUG - SPARK, CHAINSAW | E137: =_xlfn.XLOOKUP(A137,'Sheet 2'!A:A,'Sheet 2'!B:B) -> 2.56 | F137: 0 | H137: 0.13 | I137: 0
A138: 000345 | B138: 0 | C138: Each | D138: 000345 - FILE - ROUND, 7/32", CHAIN SAW | E138: =_xlfn.XLOOKUP(A138,'Sheet 2'!A:A,'Sheet 2'!B:B) -> 1.44 | F138: 0 | H138: 0.13 | I138: 0
A139: 000346 | B139: 0 | C139: Each | D139: 000346 - TOOL-COMBINATION (SCRENCH), CHAINSAW OR PUMP, 16MM & 19MM HEX | E139: =_xlfn.XLOOKUP(A139,'Sheet 2'!A:A,'Sheet 2'!B:B) -> 6.94 | F139: 0 | H139: 0.38 | I139: 0
A140: 000348 | B140: 0 | C140: Each | D140: 000348 - GUARD - CHAIN SAW BAR | E140: =_xlfn.XLOOKUP(A140,'Sheet 2'!A:A,'Sheet 2'!B:B) -> 7.46 | F140: 0 | H140: 0.63 | I140: 0
A141: 000351 | B141: 0 | C141: Each | D141: 000351 - FILE - MILL, 8'', BASTARD | E141: =_xlfn.XLOOKUP(A141,'Sheet 2'!A:A,'Sheet 2'!B:B) -> 2.38 | F141: 0 | H141: 0.25 | I141: 0
A142: 000358 | B142: 0 | C142: Each | D142: 000358 - HANDLE - FILE, CHAIN SAW | E142: =_xlfn.XLOOKUP(A142,'Sheet 2'!A:A,'Sheet 2'!B:B) -> 2.72 | F142: 0 | H142: 0.13 | I142: 0
A143: 000365 | B143: 0 | C143: Each | D143: 000365 - PEN - NYLON TIP, BLACK | E143: =_xlfn.XLOOKUP(A143,'Sheet 2'!A:A,'Sheet 2'!B:B) -> 0.82 | F143: 0 | H143: 0.06 | I143: 0
A144: =LEFT(D144, 6) -> 000366 | B144: 0 | C144: Each | D144: 000366 - PEN - NYLON TIP, BLUE | E144: =_xlfn.XLOOKUP(A144,'Sheet 2'!A:A,'Sheet 2'!B:B) -> 0.76 | F144: 0 | H144: 0.06 | I144: =B144*H144 -> 0
A145: 000367 | B145: 0 | C145: Each | D145: 000367 - PEN - NYLON TIP, RED | E145: =_xlfn.XLOOKUP(A145,'Sheet 2'!A:A,'Sheet 2'!B:B) -> 1.11 | F145: 0 | H145: 0.06 | I145: 0
A146: 000371 | B146: 0 | C146: Box | D146: 000371 - FLARE - FIRE, 3/4" X 3 1/2" | E146: =_xlfn.XLOOKUP(A146,'Sheet 2'!A:A,'Sheet 2'!B:B) -> 64.93 | F146: 0 | H146: 0.94 | I146: 0
A147: 000372 | B147: 0 | C147: Each | D147: 000372 - CARTRIDGE - #6 PURPLE,BLANK,22 CALIBER,SMALL ARMS | E147: =_xlfn.XLOOKUP(A147,'Sheet 2'!A:A,'Sheet 2'!B:B) -> 0.14 | F147: 0 | H147: 0 | I147: 0
A148: 000373 | B148: 0 | C148: Each | D148: 000373 - PLACARD - FLAMMABLE GAS 2, 10.75" X 10.75" | E148: =_xlfn.XLOOKUP(A148,'Sheet 2'!A:A,'Sheet 2'!B:B) -> 1.5 | F148: 0 | H148: 0.13 | I148: 0
A149: 000374 | B149: 0 | C149: Each | D149: 000374 - PLACARD - FLAMMABLE 3, 10.75'' X 10.75'' | E149: =_xlfn.XLOOKUP(A149,'Sheet 2'!A:A,'Sheet 2'!B:B) -> 1.59 | F149: 0 | H149: 0.13 | I149: 0
A150: 000375 | B150: 0 | C150: Each | D150: 000375 - PLACARD - COMBUSTIBLE 3, 10.75'' X 10.75'' | E150: =_xlfn.XLOOKUP(A150,'Sheet 2'!A:A,'Sheet 2'!B:B) -> 2.39 | F150: 0 | H150: 0.13 | I150: 0
A151: 000376 | B151: 0 | C151: Each | D151: 000376 - PLACARD - FLAMMABLE SOLID 4, POLYVINYL, 10.75'' X 10.75'' | E151: =_xlfn.XLOOKUP(A151,'Sheet 2'!A:A,'Sheet 2'!B:B) -> 1.27 | F151: 0 | H151: 0.13 | I151: 0
A152: 000377 | B152: 0 | C152: Each | D152: 000377 - PLACARD - OXIDIZER 5.1, POLYVINYL, 10.75" X 10.75" | E152: =_xlfn.XLOOKUP(A152,'Sheet 2'!A:A,'Sheet 2'!B:B) -> 1.3 | F152: 0 | H152: 0.13 | I152: 0
A153: 000378 | B153: 0 | C153: Each | D153: 000378 - PLACARD - CORROSIVE 8, 10.75'' X 10.75'' | E153: =_xlfn.XLOOKUP(A153,'Sheet 2'!A:A,'Sheet 2'!B:B) -> 1.49 | F153: 0 | H153: 0.13 | I153: 0
A154: 000379 | B154: 0 | C154: Each | D154: 000379 - PLACARD - EXPLOSIVES 1.4G, 10.75'' X 10.75'' | E154: =_xlfn.XLOOKUP(A154,'Sheet 2'!A:A,'Sheet 2'!B:B) -> 0.73 | F154: 0 | H154: 0.06 | I154: 0
A155: 000381 | B155: 0 | C155: PG | D155: 000381 - SUGAR SUBSTITUTE - INDIVIDUAL PACKET | E155: =_xlfn.XLOOKUP(A155,'Sheet 2'!A:A,'Sheet 2'!B:B) -> 0.06 | F155: 0 | H155: 0.01 | I155: 0
A156: 000382 | B156: 0 | C156: Each | D156: 000382 - SAW - CAMP | E156: =_xlfn.XLOOKUP(A156,'Sheet 2'!A:A,'Sheet 2'!B:B) -> 16.56 | F156: 0 | H156: 0.81 | I156: 0
A157: 000383 | B157: 0 | C157: Each | D157: 000383 - AXE - 3-5 LB, 26" STRAIGHT HANDLE W/SHEATH | E157: =_xlfn.XLOOKUP(A157,'Sheet 2'!A:A,'Sheet 2'!B:B) -> 35.12 | F157: 0 | H157: 5 | I157: 0
A158: 000384 | B158: 0 | C158: Each | D158: 000384 - CARTON - FIBERBOARD, 48" X 13" X 10" | E158: =_xlfn.XLOOKUP(A158,'Sheet 2'!A:A,'Sheet 2'!B:B) -> 40.09 | F158: 0 | H158: 1.5 | I158: 0
A159: 000385 | B159: 0 | C159: Each | D159: 000385 - CARTON - FIBERBOARD, 7 1/4 X 9 1/4 X 26 | E159: =_xlfn.XLOOKUP(A159,'Sheet 2'!A:A,'Sheet 2'!B:B) -> 12.54 | F159: 0 | H159: 2 | I159: 0
A160: 000386 | B160: 0 | C160: Each | D160: 000386 - WRENCH - ALLEN, 4MM | E160: =_xlfn.XLOOKUP(A160,'Sheet 2'!A:A,'Sheet 2'!B:B) -> 1.41 | F160: 0 | H160: 0.07 | I160: 0
A161: 000390 | B161: 0 | C161: Kit | D161: 000390 - KIT - FINANCE SECTION | E161: =_xlfn.XLOOKUP(A161,'Sheet 2'!A:A,'Sheet 2'!B:B) -> 1810.5 | F161: 0 | H161: 147 | I161: 0
A162: 000394 | B162: 0 | C162: Each | D162: 000394 - TIE WRAPS - ONE WAY, 15" - 17" | E162: =_xlfn.XLOOKUP(A162,'Sheet 2'!A:A,'Sheet 2'!B:B) -> 0.08 | F162: 0 | H162: 0.06 | I162: 0
A163: 000401 | B163: 0 | C163: Each | D163: 000401 - GASKET - WATER BAG, 2'', 5 GL & 55 GL | E163: =_xlfn.XLOOKUP(A163,'Sheet 2'!A:A,'Sheet 2'!B:B) -> 0.03 | F163: 0 | H163: 0.05 | I163: 0
A164: 000410 | B164: 0 | C164: Set | D164: 000410 - BOARD - HELIBASE DISPLAY | E164: =_xlfn.XLOOKUP(A164,'Sheet 2'!A:A,'Sheet 2'!B:B) -> 79.41 | F164: 0 | H164: 4 | I164: 0
A165: 000415 | B165: 0 | C165: Each | D165: 000415 - WINGNUT - 5/16" | E165: =_xlfn.XLOOKUP(A165,'Sheet 2'!A:A,'Sheet 2'!B:B) -> 0.72 | F165: 0 | H165: 0.01 | I165: 0
A166: 000416 | B166: 0 | C166: Each | D166: 000416 - INCREASER - 1" NPSH-F (11 1/2 TPI) TO 1 1/2" NH-M (9 TPI) | E166: =_xlfn.XLOOKUP(A166,'Sheet 2'!A:A,'Sheet 2'!B:B) -> 16.53 | F166: 0 | H166: 0.88 | I166: 0
A167: 000417 | B167: 0 | C167: Each | D167: 000417 - REDUCER - 2" NPSH-F (11 1/2 TPI) TO 1 1/2" NH-M (9 TPI) | E167: =_xlfn.XLOOKUP(A167,'Sheet 2'!A:A,'Sheet 2'!B:B) -> 26.23 | F167: 0 | H167: 0.88 | I167: 0
A168: 000418 | B168: 0 | C168: Each | D168: 000418 - REDUCER - 1 1/2" NPSH-F(11 1/2 TPI) TO 1" NPSH-M (11 1/2 TPI) | E168: =_xlfn.XLOOKUP(A168,'Sheet 2'!A:A,'Sheet 2'!B:B) -> 11.85 | F168: 0 | H168: 0.63 | I168: 0
A169: 000420 | B169: 0 | C169: Pad | D169: 000420 - FORM,OF-304 - EMERGENCY EQUIPMENT FUEL AND OIL ISSUE,(7/90) | E169: =_xlfn.XLOOKUP(A169,'Sheet 2'!A:A,'Sheet 2'!B:B) -> 7.41 | F169: 0 | H169: 0.38 | I169: 0
A170: 000422 | B170: 0 | C170: PG | D170: 000422 - FORM - EMERGENCY EQUIPMENT RENTAL USE ENVELOPE, OF-305 | E170: =_xlfn.XLOOKUP(A170,'Sheet 2'!A:A,'Sheet 2'!B:B) -> 25.72 | F170: 0 | H170: 4.25 | I170: 0
A171: 000424 | B171: 0 | C171: Each | D171: 000424 - TAPE - MEASURING, 16' | E171: =_xlfn.XLOOKUP(A171,'Sheet 2'!A:A,'Sheet 2'!B:B) -> 14.98 | F171: =E171*B171 -> 0 | H171: 0.5 | I171: 0
A172: 000426 | B172: 0 | C172: Each | D172: 000426 - BAG - SLINGABLE, WATER, 72 GL (272.6L), NON-POTABLE, ORANGE | E172: =_xlfn.XLOOKUP(A172,'Sheet 2'!A:A,'Sheet 2'!B:B) -> 380.49 | F172: 0 | H172: 11.25 | I172: 0
A173: 000428 | B173: 0 | C173: Each | D173: 000428 - FITTING - BACKPACK PUMP, MALE | E173: =_xlfn.XLOOKUP(A173,'Sheet 2'!A:A,'Sheet 2'!B:B) -> 7.13 | F173: 0 | H173: 0.13 | I173: 0
A174: 000429 | B174: 0 | C174: Each | D174: 000429 - FITTING - BACKPACK PUMP, FEMALE | E174: =_xlfn.XLOOKUP(A174,'Sheet 2'!A:A,'Sheet 2'!B:B) -> 9.65 | F174: 0 | H174: 0.31 | I174: 0
A175: 000435 | B175: 0 | C175: Each | D175: 000435 - BAG - SLINGABLE, WATER, DRINKING, 55 GL (208.2L) | E175: =_xlfn.XLOOKUP(A175,'Sheet 2'!A:A,'Sheet 2'!B:B) -> 378.13 | F175: 0 | H175: 13.75 | I175: 0
A176: 000437 | B176: 0 | C176: Each | D176: 000437 - BAG - SLINGABLE, WATER, SUPPRESSION, 55 GL (208.2L) | E176: =_xlfn.XLOOKUP(A176,'Sheet 2'!A:A,'Sheet 2'!B:B) -> 224.41 | F176: 0 | H176: 12.94 | I176: 0
A177: 000438 | B177: 0 | C177: Each | D177: 000438 - LINER - WATERBAG, SUPPRESSION, 55 GL (208.2L) | E177: =_xlfn.XLOOKUP(A177,'Sheet 2'!A:A,'Sheet 2'!B:B) -> 41.33 | F177: 0 | H177: 6.81 | I177: 0
A178: 000440 | B178: 0 | C178: Each | D178: 000440 - STRAINER - FISH, 100 GPM | E178: =_xlfn.XLOOKUP(A178,'Sheet 2'!A:A,'Sheet 2'!B:B) -> 74.75 | F178: 0 | H178: 1.12 | I178: 0
A179: 000443 | B179: 0 | C179: Each | D179: 000443 - BLANKET - PAPER DISP 60" X 90" | E179: =_xlfn.XLOOKUP(A179,'Sheet 2'!A:A,'Sheet 2'!B:B) -> 5.33 | F179: 0 | H179: 1 | I179: 0
A180: 000445 | B180: 0 | C180: Set | D180: 000445 - SPLINT - INFLATABLE, ALL LIMBS, 6 PIECE | E180: =_xlfn.XLOOKUP(A180,'Sheet 2'!A:A,'Sheet 2'!B:B) -> 113.23 | F180: 0 | H180: 3.75 | I180: 0
A181: 000446 | B181: 0 | C181: Each | D181: 000446 - COMPRESS - COLD | E181: =_xlfn.XLOOKUP(A181,'Sheet 2'!A:A,'Sheet 2'!B:B) -> 1.22 | F181: 0 | H181: 0.31 | I181: 0
A182: 000447 | B182: 0 | C182: Each | D182: 000447 - PEN - BALLPOINT,BLUE | E182: =_xlfn.XLOOKUP(A182,'Sheet 2'!A:A,'Sheet 2'!B:B) -> 1.07 | F182: 0 | H182: 0.06 | I182: 0
A183: 000448 | B183: 0 | C183: Pad | D183: 000448 - PAD - WRITING, AD-777, DI-5A OR EQUAL | E183: =_xlfn.XLOOKUP(A183,'Sheet 2'!A:A,'Sheet 2'!B:B) -> 0.81 | F183: 0 | H183: 0.13 | I183: 0
A184: 000453 | B184: 0 | C184: Each | D184: 000453 - CARTON - FIBERBOARD, 73" X 12" X 12" | E184: =_xlfn.XLOOKUP(A184,'Sheet 2'!A:A,'Sheet 2'!B:B) -> 20.69 | F184: 0 | H184: 7 | I184: 0
A185: 000464 | B185: 0 | C185: Box | D185: 000464 - PLATE - PAPER | E185: =_xlfn.XLOOKUP(A185,'Sheet 2'!A:A,'Sheet 2'!B:B) -> 41.4 | F185: 0 | H185: 25.2 | I185: 0
A186: 000465 | B186: 0 | C186: Box | D186: 000465 - CUP - PAPER, PLASTIC COATED, 12 OZ | E186: =_xlfn.XLOOKUP(A186,'Sheet 2'!A:A,'Sheet 2'!B:B) -> 96.54 | F186: 0 | H186: 18 | I186: 0
A187: 000471 | B187: 0 | C187: Each | D187: 000471 - ASSEMBLY - FUEL LINE, COFFEE HEATING KIT | E187: =_xlfn.XLOOKUP(A187,'Sheet 2'!A:A,'Sheet 2'!B:B) -> 158.46 | F187: 0 | H187: 3 | I187: 0
A188: 000473 | B188: 0 | C188: Each | D188: 000473 - WRENCH - ADJUSTABLE, 10" | E188: =_xlfn.XLOOKUP(A188,'Sheet 2'!A:A,'Sheet 2'!B:B) -> 11.19 | F188: 0 | H188: 0.88 | I188: 0
A189: 000474 | B189: 0 | C189: Pair | D189: 000474 - GLASSES - SAFETY, GRAY | E189: =_xlfn.XLOOKUP(A189,'Sheet 2'!A:A,'Sheet 2'!B:B) -> 5.44 | F189: 0 | H189: 0.38 | I189: 0
A190: 000475 | B190: 0 | C190: Pair | D190: 000475 - GLASSES - SAFETY, CLEAR | E190: =_xlfn.XLOOKUP(A190,'Sheet 2'!A:A,'Sheet 2'!B:B) -> 5.23 | F190: 0 | H190: 0.38 | I190: 0
A191: 000476 | B191: 0 | C191: Pair | D191: 000476 - GLASSES - SAFETY, AMBER | E191: =_xlfn.XLOOKUP(A191,'Sheet 2'!A:A,'Sheet 2'!B:B) -> 5.23 | F191: 0 | H191: 0.38 | I191: 0
A192: 000478 | B192: 0 | C192: Each | D192: 000478 - IGNITER - LONG HANDLE | E192: =_xlfn.XLOOKUP(A192,'Sheet 2'!A:A,'Sheet 2'!B:B) -> 3.75 | F192: 0 | H192: 0.19 | I192: 0
A193: 000480 | B193: 0 | C193: Kit | D193: 000480 - KIT - COFFEE HEATING | E193: =_xlfn.XLOOKUP(A193,'Sheet 2'!A:A,'Sheet 2'!B:B) -> 1852.88 | F193: 0 | H193: 100 | I193: 0
A194: 000481 | B194: 0 | C194: Each | D194: 000481 - URN - COFFEE, 20 GL (75.7L) STAINLESS STEEL | E194: =_xlfn.XLOOKUP(A194,'Sheet 2'!A:A,'Sheet 2'!B:B) -> 499.64 | F194: 0 | H194: 28.13 | I194: 0
A195: 000482 | B195: 0 | C195: Each | D195: 000482 - BASKET - FILTER, W/HANDLES | E195: =_xlfn.XLOOKUP(A195,'Sheet 2'!A:A,'Sheet 2'!B:B) -> 229.13 | F195: 0 | H195: 1.63 | I195: 0
A196: 000483 | B196: 0 | C196: Each | D196: 000483 - FILTERS - PAPER, COFFEE BASKET, 23" X 9" | E196: =_xlfn.XLOOKUP(A196,'Sheet 2'!A:A,'Sheet 2'!B:B) -> 0.12 | F196: 0 | H196: 0.06 | I196: 0
A197: 000484 | B197: 0 | C197: Each | D197: 000484 - STAND - COFFEE URN, RING TYPE | E197: =_xlfn.XLOOKUP(A197,'Sheet 2'!A:A,'Sheet 2'!B:B) -> 35.35 | F197: 0 | H197: 1.88 | I197: 0
A198: 000485 | B198: 0 | C198: Each | D198: 000485 - RING - SEATING | E198: =_xlfn.XLOOKUP(A198,'Sheet 2'!A:A,'Sheet 2'!B:B) -> 56.15 | F198: 0 | H198: 0.88 | I198: 0
A199: 000487 | B199: 0 | C199: Each | D199: 000487 - PAIL - POURING, STAINLESS STEEL, 12 QT (11.4L) | E199: =_xlfn.XLOOKUP(A199,'Sheet 2'!A:A,'Sheet 2'!B:B) -> 16.15 | F199: 0 | H199: 2.9 | I199: 0
A200: 000488 | B200: 0 | C200: Each | D200: 000488 - STOVE - WATER HEATER, SINGLE BURNER | E200: =_xlfn.XLOOKUP(A200,'Sheet 2'!A:A,'Sheet 2'!B:B) -> 215.55 | F200: 0 | H200: 9.13 | I200: 0
A201: 000490 | B201: 0 | C201: Each | D201: 000490 - WINDSHIELD - STOVE, WATER HEATER | E201: =_xlfn.XLOOKUP(A201,'Sheet 2'!A:A,'Sheet 2'!B:B) -> 39.78 | F201: 0 | H201: 1.56 | I201: 0
... 532 more rows

Sheet Sheet 2
A1: Item ID | B1: Cost | F1: 6 | H1: January | I1: 1
A2: 000002 | B2: 4.32 | F2: 7 | H2: February | I2: 2
A3: 000003 | B3: 4.95 | F3: 4 | H3: March | I3: 3
A4: 000004 | B4: 5.01 | F4: 3 | H4: April | I4: 4
A5: 000006 | B5: 15.57 | F5: 46 | H5: May | I5: 5
A6: 000007 | B6: 16.12 | F6: 857 | H6: June | I6: 6
A7: 000009 | B7: 29.92 | F7: 710 | H7: July | I7: 7
A8: 000010 | B8: 13.58 | F8: 856 | H8: August | I8: 8
A9: 000011 | B9: 112.37 | F9: 916 | H9: September | I9: 9
A10: 000012 | B10: 26.21 | F10: 429 | H10: October | I10: 10
A11: 000013 | B11: 45.32 | F11: 428 | H11: November | I11: 11
A12: 000014 | B12: 10.41 | F12: 1145 | H12: December | I12: 12
A13: 000015 | B13: 40 | F13: 105 | I13: 13
A14: 000016 | B14: 39.55 | F14: 743 | I14: 14
A15: 000017 | B15: 0.85 | F15: 254 | I15: 15
A16: 000018 | B16: 249.51 | F16: 721 | I16: 16
A17: 000020 | B17: 79.81 | F17: 1296 | I17: 17
A18: 000021 | B18: 29.89 | F18: 1295 | I18: 18
A19: 000022 | B19: 62.66 | F19: 1294 | I19: 19
A20: 000024 | B20: 161.35 | F20: 1297 | I20: 20
A21: 000027 | B21: 5.01 | F21: 1293 | I21: 21
A22: 000028 | B22: 146.67 | F22: 318 | I22: 22
A23: 000030 | B23: 9.26 | F23: 1086 | I23: 23
A24: 000033 | B24: 15.47 | F24: 718 | I24: 24
A25: 000034 | B25: 13.64 | F25: 7291 | I25: 25
A26: 000035 | B26: 7.59 | F26: 7287 | I26: 26
A27: 000037 | B27: 2.03 | F27: 1016 | I27: 27
A28: 000038 | B28: 10.08 | F28: 7629 | I28: 28
A29: 000040 | B29: 115 | F29: 115 | I29: 29
A30: 000043 | B30: 25.74 | F30: 1239 | I30: 30
A31: 000045 | B31: 146.67 | F31: 1238 | I31: 31
A32: 000046 | B32: 53.07 | F32: 1808
A33: 000047 | B33: 46.56 | F33: 2800
A34: 000048 | B34: 186.25 | F34: 2841
A35: 000049 | B35: 15.47 | F35: 2700
A36: 000050 | B36: 209.16 | F36: 2801
A37: 000052 | B37: 5.01 | F37: 2843
A38: 000053 | B38: 88.26 | F38: 2701
A39: 000054 | B39: 3.1 | F39: 2844
A40: 000058 | B40: 85.55 | F40: 2802
A41: 000059 | B41: 8.76 | F41: 2702
A42: 000060 | B42: 3.26 | F42: 2803
A43: 000061 | B43: 7.61 | F43: 2845
A44: 000062 | B44: 42 | F44: 2703
A45: 000063 | B45: 2.46 | F45: 2804
A46: 000064 | B46: 530 | F46: 2847
A47: 000066 | B47: 6.79 | F47: 2704
A48: 000067 | B48: 24.31 | F48: 2805
A49: 000069 | B49: 11.58 | F49: 2848
A50: 000070 | B50: 663.05 | F50: 2705
A51: 000071 | B51: 7.68 | F51: 2806
A52: 000072 | B52: 42 | F52: 2849
A53: 000074 | B53: 1.31 | F53: 2706
A54: 000075 | B54: 4.13 | F54: 2807
A55: 000077 | B55: 255.31 | F55: 2850
A56: 000078 | B56: 146.67 | F56: 2707
A57: 000079 | B57: 9.46 | F57: 2842
A58: 000081 | B58: 15.87 | F58: 2846
A59: 000082 | B59: 85.38 | F59: 2851
A60: 000083 | B60: 60.91 | F60: 597
A61: 000084 | B61: 689.68 | F61: 296
A62: 000085 | B62: 51.43 | F62: 24
A63: 000086 | B63: 8.65 | F63: 628
A64: 000087 | B64: 4.84 | F64: 629
A65: 000088 | B65: 3.55 | F65: 627
A66: 000089 | B66: 184.17 | F66: 136
A67: 000090 | B67: 895.77 | F67: 138
A68: 000091 | B68: 88.77 | F68: 137
A69: 000092 | B69: 193.11 | F69: 674
A70: 000093 | B70: 137.5 | F70: 679
A71: 000094 | B71: 10.87 | F71: 146
A72: 000096 | B72: 37.44 | F72: 1149
A73: 000097 | B73: 56.45 | F73: 151
A74: 000098 | B74: 14.31 | F74: 659
A75: 000100 | B75: 8.12 | F75: 1807
A76: 000103 | B76: 320.93 | F76: 10
A77: 000104 | B77: 1586.81 | F77: 733
A78: 000105 | B78: 143.17 | F78: 2230
A79: 000106 | B79: 20.25 | F79: 257
A80: 000109 | B80: 52.33 | F80: 975
A81: 000113 | B81: 57.72 | F81: 925
A82: 000114 | B82: 38.91 | F82: 579
A83: 000115 | B83: 214.15 | F83: 578
A84: 000116 | B84: 46.13 | F84: 569
A85: 000117 | B85: 43.73 | F85: 577
A86: 000118 | B86: 556.42 | F86: 580
A87: 000119 | B87: 95.46 | F87: 570
A88: 000120 | B88: 1425.75 | F88: 2078
A89: 000121 | B89: 1359.29 | F89: 511
A90: 000124 | B90: 679.84 | F90: 2079
A91: 000126 | B91: 12.96 | F91: 522
A92: 000128 | B92: 116.97 | F92: 512
A93: 000129 | B93: 3.3 | F93: 2910
A94: 000131 | B94: 0.98 | F94: 2911
A95: 000132 | B95: 11.34 | F95: 171
A96: 000135 | B96: 70.11 | F96: 1274
A97: 000136 | B97: 22.06 | F97: 1868
A98: 000137 | B98: 8.33 | F98: 731
A99: 000138 | B99: 8.64 | F99: 230
A100: 000139 | B100: 3.93 | F100: 1180
A101: 000140 | B101: 11.49 | F101: 241
A102: 000141 | B102: 10.46 | F102: 228
A103: 000142 | B103: 68.46 | F103: 212
A104: 000143 | B104: 67.8 | F104: 231
A105: 000144 | B105: 84.53 | F105: 259
A106: 000145 | B106: 116.49 | F106: 229
A107: 000146 | B107: 72.68 | F107: 235
A108: 000147 | B108: 6826.9 | F108: 234
A109: 000148 | B109: 5354.46
A110: 000149 | B110: 278.56
A111: 000150 | B111: 146.67
A112: 000151 | B112: 70.67
A113: 000152 | B113: 7.89
A114: 000153 | B114: 8.27
A115: 000159 | B115: 1347.75
A116: 000171 | B116: 91.53
A117: 000177 | B117: 6.39
A118: 000178 | B118: 1.47
A119: 000184 | B119: 12.03
A120: 000185 | B120: 6.5
A121: 000186 | B121: 12.89
A122: 000189 | B122: 0.69
A123: 000191 | B123: 75
A124: 000193 | B124: 0
A125: 000194 | B125: 29
A126: 000195 | B126: 35
A127: 000196 | B127: 11.91
A128: 000197 | B128: 4.32
A129: 000204 | B129: 63.84
A130: 000206 | B130: 0.21
A131: 000208 | B131: 55.98
A132: 000209 | B132: 125.48
A133: 000210 | B133: 12.31
A134: 000212 | B134: 87.78
A135: 000213 | B135: 4.65
A136: 000215 | B136: 5.82
A137: 000216 | B137: 0.24
A138: 000217 | B138: 122.26
A139: 000218 | B139: 181.15
A140: 000220 | B140: 402.61
A141: 000221 | B141: 293.89
A142: 000222 | B142: 5.4
A143: 000223 | B143: 434.1
A144: 000224 | B144: 0
A145: 000225 | B145: 35.02
A146: 000228 | B146: 132.81
A147: 000229 | B147: 104.38
A148: 000230 | B148: 47.09
A149: 000231 | B149: 125.63
A150: 000233 | B150: 3.21
A151: 000234 | B151: 6.46
A152: 000235 | B152: 11.08
A153: 000237 | B153: 4.5
A154: 000238 | B154: 96.16
A155: 000240 | B155: 31.1
A156: 000241 | B156: 214.72
A157: 000242 | B157: 1397.46
A158: 000243 | B158: 2245
A159: 000244 | B159: 423.9
A160: 000245 | B160: 917.78
A161: 000246 | B161: 430.97
A162: 000247 | B162: 27.91
A163: 000248 | B163: 11.34
A164: 000249 | B164: 12.49
A165: 000250 | B165: 22.29
A166: 000251 | B166: 2.88
A167: 000254 | B167: 0.34
A168: 000255 | B168: 41.95
A169: 000256 | B169: 2.23
A170: 000257 | B170: 4.19
A171: 000258 | B171: 73.83
A172: 000259 | B172: 124.55
A173: 000260 | B173: 141.44
A174: 000261 | B174: 7.89
A175: 000262 | B175: 13.93
A176: 000263 | B176: 5.86
A177: 000264 | B177: 0.84
A178: 000265 | B178: 16.72
A179: 000266 | B179: 4.71
A180: 000267 | B180: 3.74
A181: 000268 | B181: 51.75
A182: 000273 | B182: 7.51
A183: 000278 | B183: 2.59
A184: 000279 | B184: 2.46
A185: 000280 | B185: 20.53
A186: 000281 | B186: 33.33
A187: 000283 | B187: 1.06
A188: 000284 | B188: 7.13
A189: 000285 | B189: 18.05
A190: 000286 | B190: 1312.28
A191: 000287 | B191: 0.01
A192: 000288 | B192: 15.55
A193: 000289 | B193: 15.76
A194: 000290 | B194: 8.18
A195: 000291 | B195: 9.47
A196: 000292 | B196: 15.82
A197: 000293 | B197: 7.24
A198: 000294 | B198: 19.26
A199: 000295 | B199: 9.19
A200: 000296 | B200: 68.49
... 3804 more rows
